[Event "Live Chess"]
[Site "Chess.com"]
[Date "2023.05.21"]
[Round "-"]
[White "NAZRIZ1977"]
[Black "Brooms1989"]
[Result "1-0"]
[WhiteElo "2062"]
[BlackElo "1090"]
[TimeControl "300"]
[EndTime "16:26:43 PDT"]
[Termination "NAZRIZ1977 won by resignation"]

1. d4 {[%clk 0:04:56.1]} 1... Nf6 {[%clk 0:04:58.3]} 2. Nc3 {[%clk 0:04:55.1]}
2... g6 {[%clk 0:04:57.2]} 3. e4 {[%clk 0:04:54.1]} 3... d6 {[%clk 0:04:55.8]}
4. f3 {[%clk 0:04:53.4]} 4... Bg7 {[%clk 0:04:54.6]} 5. Be3 {[%clk 0:04:52.8]}
5... O-O {[%clk 0:04:53.1]} 6. Qd2 {[%clk 0:04:51.7]} 6... Nbd7 {[%clk 0:04:46]}
7. O-O-O {[%clk 0:04:50.5]} 7... e5 {[%clk 0:04:42.8]} 8. Nge2 {[%clk 0:04:50]}
8... exd4 {[%clk 0:04:39.4]} 9. Nxd4 {[%clk 0:04:48]} 9... Nb6 {[%clk
0:04:31.5]} 10. Bh6 {[%clk 0:04:45.1]} 10... Nc4 {[%clk 0:04:22.8]} 11. Bxc4
{[%clk 0:04:43.5]} 1-0

[Event "Live Chess"]
[Site "Chess.com"]
[Date "2023.05.21"]
[Round "-"]
[White "Olisingapore"]
[Black "JohanKjeldahl"]
[Result "1-0"]
[WhiteElo "1831"]
[BlackElo "1865"]
[TimeControl "300"]
[EndTime "16:26:50 PDT"]
[Termination "Olisingapore won by resignation"]

1. d4 {[%clk 0:04:54]} 1... Nf6 {[%clk 0:04:58.1]} 2. c4 {[%clk 0:04:53.7]} 2...
e5 {[%clk 0:04:56.7]} 3. dxe5 {[%clk 0:04:52.6]} 3... Ng4 {[%clk 0:04:55.7]} 4.
Nf3 {[%clk 0:04:51.6]} 4... Nc6 {[%clk 0:04:54.5]} 5. e3 {[%clk 0:04:49.1]} 5...
Ngxe5 {[%clk 0:04:52.1]} 6. Nc3 {[%clk 0:04:42.5]} 6... Bb4 {[%clk 0:04:50.1]}
7. Be2 {[%clk 0:04:40.4]} 7... O-O {[%clk 0:04:48.7]} 8. O-O {[%clk 0:04:37.9]}
8... d6 {[%clk 0:04:47.7]} 9. Bd2 {[%clk 0:04:36.3]} 9... Bd7 {[%clk 0:04:43.4]}
10. a3 {[%clk 0:04:31.2]} 10... Bxc3 {[%clk 0:04:42.2]} 11. Bxc3 {[%clk
0:04:28.5]} 11... Qe7 {[%clk 0:04:39.3]} 12. b4 {[%clk 0:04:18.5]} 12... Rae8
{[%clk 0:04:36.4]} 13. b5 {[%clk 0:04:16.7]} 13... Nd8 {[%clk 0:04:34.6]} 14.
Nxe5 {[%clk 0:04:03.6]} 14... dxe5 {[%clk 0:04:32.5]} 15. Qd2 {[%clk 0:03:51.6]}
15... Bf5 {[%clk 0:04:24.8]} 16. Bb4 {[%clk 0:03:36.7]} 16... Qg5 {[%clk
0:04:18.2]} 17. Bxf8 {[%clk 0:03:33.6]} 17... Rxf8 {[%clk 0:04:16.8]} 18. c5
{[%clk 0:03:31.2]} 18... e4 {[%clk 0:04:11.7]} 19. Qa5 {[%clk 0:03:05]} 19...
Bh3 {[%clk 0:04:09.3]} 20. g3 {[%clk 0:02:37.9]} 20... Bxf1 {[%clk 0:04:06.7]}
21. Bxf1 {[%clk 0:02:36.8]} 21... Qxc5 {[%clk 0:04:05.1]} 22. Qa4 {[%clk
0:02:31.7]} 22... Ne6 {[%clk 0:04:00.5]} 23. Qxe4 {[%clk 0:02:28.1]} 23... b6
{[%clk 0:03:55.4]} 24. Bc4 {[%clk 0:02:25.4]} 24... Re8 {[%clk 0:03:50.8]} 25.
Bxe6 {[%clk 0:02:20.6]} 25... fxe6 {[%clk 0:03:48.2]} 26. a4 {[%clk 0:02:14]}
26... Qd5 {[%clk 0:03:43.3]} 27. Qc2 {[%clk 0:02:08.7]} 27... Qe5 {[%clk
0:03:38.4]} 28. Rc1 {[%clk 0:02:06]} 28... Re7 {[%clk 0:03:35.8]} 29. Qc6 {[%clk
0:01:57.2]} 29... Kf7 {[%clk 0:03:29.4]} 30. Qf3+ {[%clk 0:01:53.7]} 30... Qf6
{[%clk 0:03:27]} 31. Qh5+ {[%clk 0:01:47.1]} 31... Qg6 {[%clk 0:03:24.2]} 32.
Qe5 {[%clk 0:01:45.6]} 32... Qf6 {[%clk 0:03:12.4]} 33. Qe4 {[%clk 0:01:29.9]}
33... Rd7 {[%clk 0:03:00.1]} 34. Qxh7 {[%clk 0:01:23.9]} 34... Rd2 {[%clk
0:02:55]} 35. Rxc7+ {[%clk 0:01:18.9]} 35... Ke8 {[%clk 0:02:46.2]} 36. Qg8+
{[%clk 0:01:16.2]} 1-0

[Event "Live Chess"]
[Site "Chess.com"]
[Date "2023.05.21"]
[Round "-"]
[White "chessfiction"]
[Black "birdseed45"]
[Result "1-0"]
[WhiteElo "2344"]
[BlackElo "1856"]
[TimeControl "300"]
[EndTime "16:26:53 PDT"]
[Termination "chessfiction won by resignation"]

1. e4 {[%clk 0:04:59.8]} 1... c5 {[%clk 0:04:56.4]} 2. d4 {[%clk 0:04:59.1]}
2... cxd4 {[%clk 0:04:54.4]} 3. c3 {[%clk 0:04:59]} 3... dxc3 {[%clk 0:04:52.6]}
4. Nxc3 {[%clk 0:04:58.9]} 4... Nc6 {[%clk 0:04:51.1]} 5. Bg5 {[%clk 0:04:58.3]}
5... h6 {[%clk 0:04:48.1]} 6. Bh4 {[%clk 0:04:57.2]} 6... g5 {[%clk 0:04:47.1]}
7. Bg3 {[%clk 0:04:56.2]} 7... Nf6 {[%clk 0:04:44.1]} 8. Bc4 {[%clk 0:04:55.7]}
8... Bg7 {[%clk 0:04:41.1]} 9. e5 {[%clk 0:04:55]} 9... Nh7 {[%clk 0:04:35.3]}
10. Qf3 {[%clk 0:04:49.9]} 10... O-O {[%clk 0:04:31.7]} 11. O-O-O {[%clk
0:04:43.1]} 11... Nxe5 {[%clk 0:04:26.2]} 12. Bxe5 {[%clk 0:04:41.1]} 12... Bxe5
{[%clk 0:04:25.3]} 13. Nge2 {[%clk 0:04:40]} 13... d6 {[%clk 0:04:19.9]} 14. h4
{[%clk 0:04:34]} 14... g4 {[%clk 0:04:13.9]} 15. Qe3 {[%clk 0:04:24.4]} 15... h5
{[%clk 0:04:04.7]} 16. f4 {[%clk 0:04:10.3]} 16... Bg7 {[%clk 0:03:56.6]} 17.
Kb1 {[%clk 0:04:03.2]} 17... Bf5+ {[%clk 0:03:51.7]} 18. Ka1 {[%clk 0:03:59.8]}
18... Qc7 {[%clk 0:03:44.8]} 19. Nd5 {[%clk 0:03:49.7]} 19... Qxc4 {[%clk
0:03:32.7]} 20. Nxe7+ {[%clk 0:03:49.2]} 20... Kh8 {[%clk 0:03:30.4]} 21. Nxf5
{[%clk 0:03:49.1]} 21... Rae8 {[%clk 0:03:16.2]} 22. Qc1 {[%clk 0:03:39.3]}
22... Qxc1+ {[%clk 0:03:07.5]} 23. Nxc1 {[%clk 0:03:37.7]} 23... Rd8 {[%clk
0:02:57.5]} 24. Nxd6 {[%clk 0:03:35.4]} 24... Nf6 {[%clk 0:02:51.7]} 25. Nxf7+
{[%clk 0:03:33.2]} 25... Rxf7 {[%clk 0:02:47.6]} 26. Rxd8+ {[%clk 0:03:33.1]}
26... Kh7 {[%clk 0:02:46.3]} 27. Rhd1 {[%clk 0:03:29.6]} 27... Bh6 {[%clk
0:02:41.2]} 28. g3 {[%clk 0:03:26.2]} 28... Bg7 {[%clk 0:02:38.8]} 29. Nd3
{[%clk 0:03:22]} 29... Ne4 {[%clk 0:02:32.9]} 30. Ne5 {[%clk 0:03:15.5]} 30...
Bxe5 {[%clk 0:02:27.7]} 31. fxe5 {[%clk 0:03:15.4]} 31... Nxg3 {[%clk
0:02:24.2]} 32. e6 {[%clk 0:03:14.1]} 32... Re7 {[%clk 0:02:13.9]} 33. R8d7
{[%clk 0:03:10.9]} 33... Nf5 {[%clk 0:02:04.3]} 34. Rxe7+ {[%clk 0:03:07.4]}
34... Nxe7 {[%clk 0:02:02.9]} 35. Rd7 {[%clk 0:03:06.9]} 1-0

[Event "Live Chess"]
[Site "Chess.com"]
[Date "2023.05.21"]
[Round "-"]
[White "LutherSullivan"]
[Black "HoarseyHorsey"]
[Result "1-0"]
[WhiteElo "2074"]
[BlackElo "1433"]
[TimeControl "300"]
[EndTime "16:26:54 PDT"]
[Termination "LutherSullivan won by resignation"]

1. d4 {[%clk 0:04:58]} 1... Nf6 {[%clk 0:04:58.8]} 2. Nf3 {[%clk 0:04:56.2]}
2... d5 {[%clk 0:04:58.2]} 3. Bf4 {[%clk 0:04:53.9]} 3... c5 {[%clk 0:04:53.3]}
4. e3 {[%clk 0:04:53.1]} 4... Nc6 {[%clk 0:04:52.4]} 5. Nbd2 {[%clk 0:04:48.1]}
5... cxd4 {[%clk 0:04:51.4]} 6. exd4 {[%clk 0:04:45.8]} 6... Bg4 {[%clk
0:04:50]} 7. c3 {[%clk 0:04:43.9]} 7... e6 {[%clk 0:04:49.1]} 8. Qb3 {[%clk
0:04:40.5]} 8... Qc8 {[%clk 0:04:39]} 9. Bd3 {[%clk 0:04:28.9]} 9... Be7 {[%clk
0:04:26.8]} 10. O-O {[%clk 0:04:27.1]} 10... O-O {[%clk 0:04:25.3]} 11. Rae1
{[%clk 0:04:26.4]} 11... Re8 {[%clk 0:04:20.2]} 12. Ne5 {[%clk 0:04:23]} 12...
Nxe5 {[%clk 0:04:14.1]} 13. Bxe5 {[%clk 0:04:18.2]} 13... Nd7 {[%clk 0:04:11.2]}
14. Bg3 {[%clk 0:04:14]} 14... Nb6 {[%clk 0:03:54.9]} 15. f4 {[%clk 0:04:10.8]}
15... Bd6 {[%clk 0:03:14.1]} 16. Bh4 {[%clk 0:03:40.2]} 16... Qc7 {[%clk
0:03:04.1]} 17. g3 {[%clk 0:03:28.4]} 17... Bh3 {[%clk 0:02:56.9]} 18. Rf2
{[%clk 0:03:26.6]} 18... Be7 {[%clk 0:02:38.9]} 19. Bxe7 {[%clk 0:03:24]} 19...
Qxe7 {[%clk 0:02:38.8]} 20. Nf3 {[%clk 0:03:22.6]} 20... h6 {[%clk 0:02:34]} 21.
f5 {[%clk 0:03:16.8]} 21... Qf6 {[%clk 0:02:29.9]} 22. fxe6 {[%clk 0:03:12.3]}
22... Rxe6 {[%clk 0:02:27.3]} 23. Ne5 {[%clk 0:03:08.6]} 23... Qe7 {[%clk
0:02:11.8]} 24. Rfe2 {[%clk 0:02:54.9]} 24... Re8 {[%clk 0:01:57.4]} 25. Bb5
{[%clk 0:02:52.3]} 25... Nc4 {[%clk 0:01:33.4]} 26. Bxe8 {[%clk 0:02:44.8]}
26... Nxe5 {[%clk 0:01:26.8]} 27. Rxe5 {[%clk 0:02:31.2]} 27... Qxe8 {[%clk
0:01:20.4]} 28. Qxb7 {[%clk 0:02:24.1]} 28... Rxe5 {[%clk 0:00:50]} 29. Rxe5
{[%clk 0:02:00.2]} 29... Qd8 {[%clk 0:00:43.9]} 30. Qxd5 {[%clk 0:01:52.6]}
30... Qf6 {[%clk 0:00:39.5]} 31. Re8+ {[%clk 0:01:47.8]} 31... Kh7 {[%clk
0:00:38.4]} 32. Qe4+ {[%clk 0:01:42.8]} 32... Bf5 {[%clk 0:00:36.8]} 33. Qe5
{[%clk 0:01:34.3]} 33... Qg5 {[%clk 0:00:32]} 34. Qf4 {[%clk 0:01:29.2]} 34...
Qg6 {[%clk 0:00:25.1]} 35. Re5 {[%clk 0:01:21]} 35... Bh3 {[%clk 0:00:21.6]} 36.
Qe4 {[%clk 0:01:17.5]} 36... Qxe4 {[%clk 0:00:12.5]} 37. Rxe4 {[%clk 0:01:16.4]}
37... f6 {[%clk 0:00:11.5]} 38. Re7 {[%clk 0:01:16]} 38... Bf5 {[%clk
0:00:10.6]} 39. Rxa7 {[%clk 0:01:15.5]} 39... Kg6 {[%clk 0:00:10.2]} 40. a4
{[%clk 0:01:14.4]} 40... Bd3 {[%clk 0:00:09.6]} 1-0

[Event "Live Chess"]
[Site "Chess.com"]
[Date "2023.05.21"]
[Round "-"]
[White "LiamBellwood"]
[Black "mattihelenius2"]
[Result "1-0"]
[WhiteElo "2061"]
[BlackElo "489"]
[TimeControl "300"]
[EndTime "16:26:57 PDT"]
[Termination "LiamBellwood won by checkmate"]

1. d4 {[%clk 0:04:59.6]} 1... d5 {[%clk 0:04:58.2]} 2. Nc3 {[%clk 0:04:57.3]}
2... Nc6 {[%clk 0:04:51.6]} 3. Bf4 {[%clk 0:04:56.9]} 3... Nf6 {[%clk
0:04:40.4]} 4. Nb5 {[%clk 0:04:56.3]} 4... g6 {[%clk 0:04:38.4]} 5. Nxc7+ {[%clk
0:04:55.2]} 5... Kd7 {[%clk 0:04:25.4]} 6. Nxa8 {[%clk 0:04:55.1]} 6... Ne4
{[%clk 0:04:22.5]} 7. Nf3 {[%clk 0:04:54]} 7... Bg7 {[%clk 0:04:13.7]} 8. Ne5+
{[%clk 0:04:52.5]} 8... Bxe5 {[%clk 0:04:11.5]} 9. dxe5 {[%clk 0:04:51.9]} 9...
Nxe5 {[%clk 0:04:08.9]} 10. Qxd5+ {[%clk 0:04:48.8]} 10... Ke8 {[%clk
0:03:55.8]} 11. Qxd8+ {[%clk 0:04:46.9]} 11... Kxd8 {[%clk 0:03:54.9]} 12. Bxe5
{[%clk 0:04:46.8]} 12... Bf5 {[%clk 0:03:33.5]} 13. O-O-O+ {[%clk 0:04:46.7]}
13... Ke8 {[%clk 0:03:29]} 14. Nc7+ {[%clk 0:04:44.7]} 14... Kf8 {[%clk
0:03:24.9]} 15. Rd8# {[%clk 0:04:44.6]} 1-0

[Event "Live Chess"]
[Site "Chess.com"]
[Date "2023.05.21"]
[Round "-"]
[White "CameronM1234"]
[Black "jimwad"]
[Result "0-1"]
[WhiteElo "1090"]
[BlackElo "1215"]
[TimeControl "300"]
[EndTime "16:27:10 PDT"]
[Termination "jimwad won on time"]

1. e4 {[%clk 0:04:57.8]} 1... e5 {[%clk 0:04:58.7]} 2. Nf3 {[%clk 0:04:57.1]}
2... Nc6 {[%clk 0:04:57.2]} 3. g3 {[%clk 0:04:56.2]} 3... Nf6 {[%clk 0:04:55.5]}
4. d3 {[%clk 0:04:55.3]} 4... Bc5 {[%clk 0:04:50.2]} 5. Bg2 {[%clk 0:04:54.4]}
5... O-O {[%clk 0:04:48.2]} 6. O-O {[%clk 0:04:53.4]} 6... d6 {[%clk 0:04:47]}
7. c3 {[%clk 0:04:45.3]} 7... Bg4 {[%clk 0:04:43.6]} 8. a4 {[%clk 0:04:42.9]}
8... a5 {[%clk 0:04:42.2]} 9. h3 {[%clk 0:04:37.6]} 9... Bh5 {[%clk 0:04:39.4]}
10. Qe1 {[%clk 0:04:14.8]} 10... Qd7 {[%clk 0:04:25.2]} 11. Kh2 {[%clk
0:04:04.5]} 11... h6 {[%clk 0:04:04.7]} 12. b3 {[%clk 0:03:45.7]} 12... Nh7
{[%clk 0:03:57.8]} 13. Bb2 {[%clk 0:03:41.6]} 13... Bxf3 {[%clk 0:03:55.5]} 14.
Bxf3 {[%clk 0:03:39.7]} 14... Ng5 {[%clk 0:03:54.6]} 15. Bg2 {[%clk 0:03:36.8]}
15... f5 {[%clk 0:03:48.6]} 16. exf5 {[%clk 0:03:07.9]} 16... Qxf5 {[%clk
0:03:46.8]} 17. Nd2 {[%clk 0:02:46.3]} 17... Rae8 {[%clk 0:03:41]} 18. Ne4
{[%clk 0:02:33.9]} 18... Nxe4 {[%clk 0:03:38.8]} 19. Bxe4 {[%clk 0:02:32.3]}
19... Qg5 {[%clk 0:03:16.7]} 20. Bc1 {[%clk 0:02:00.8]} 20... Qd8 {[%clk
0:03:13.3]} 21. Be3 {[%clk 0:01:56.3]} 21... Bxe3 {[%clk 0:03:10.3]} 22. Qxe3
{[%clk 0:01:56.2]} 22... d5 {[%clk 0:03:09.2]} 23. Bg2 {[%clk 0:01:47]} 23... e4
{[%clk 0:02:59.8]} 24. dxe4 {[%clk 0:01:39.8]} 24... dxe4 {[%clk 0:02:58.2]} 25.
Rad1 {[%clk 0:01:36.6]} 25... Qe7 {[%clk 0:02:53.2]} 26. Rd2 {[%clk 0:01:22.2]}
26... b6 {[%clk 0:02:51.3]} 27. Rfd1 {[%clk 0:01:20.7]} 27... Nb8 {[%clk
0:02:45.2]} 28. Rd4 {[%clk 0:01:15.4]} 28... c5 {[%clk 0:02:42.2]} 29. Rxe4
{[%clk 0:01:06.6]} 29... Qf7 {[%clk 0:02:40.2]} 30. Rxe8 {[%clk 0:00:35.4]}
30... Rxe8 {[%clk 0:02:38]} 31. Qf3 {[%clk 0:00:32.3]} 31... Qxf3 {[%clk
0:02:35.2]} 32. Bxf3 {[%clk 0:00:32.1]} 32... Na6 {[%clk 0:02:26.2]} 33. Rd7
{[%clk 0:00:28.1]} 33... Rf8 {[%clk 0:02:22.2]} 34. Bb7 {[%clk 0:00:20.9]} 34...
Nb8 {[%clk 0:02:20.1]} 35. Rd6 {[%clk 0:00:18.7]} 35... Rxf2+ {[%clk 0:02:16.8]}
36. Kg1 {[%clk 0:00:17.3]} 36... Rf8 {[%clk 0:02:12.8]} 37. Rxb6 {[%clk
0:00:15.6]} 37... Nd7 {[%clk 0:02:11]} 38. Rc6 {[%clk 0:00:13.1]} 38... Ne5
{[%clk 0:02:09.7]} 39. Rxc5 {[%clk 0:00:11.7]} 39... Nf3+ {[%clk 0:02:08.6]} 40.
Kg2 {[%clk 0:00:10.3]} 40... Ne1+ {[%clk 0:02:07]} 41. Kh2 {[%clk 0:00:09]}
41... Nf3+ {[%clk 0:02:05.6]} 42. Kh1 {[%clk 0:00:08]} 42... Nd2 {[%clk
0:02:04.4]} 43. Rxa5 {[%clk 0:00:05.4]} 43... Nxb3 {[%clk 0:02:02.7]} 44. Rb5
{[%clk 0:00:04.1]} 44... Nd2 {[%clk 0:02:00.5]} 45. Bd5+ {[%clk 0:00:01]} 45...
Kh8 {[%clk 0:01:58.4]} 46. c4 {[%clk 0:00:00.6]} 46... Rf1+ {[%clk 0:01:49.4]}
47. Kg2 {[%clk 0:00:00.1]} 47... Rf3 {[%clk 0:01:47.3]} 0-1

[Event "Live Chess"]
[Site "Chess.com"]
[Date "2023.05.21"]
[Round "-"]
[White "WilliamofOrange16th"]
[Black "ShanthamGrarks"]
[Result "0-1"]
[WhiteElo "1840"]
[BlackElo "1995"]
[TimeControl "300"]
[EndTime "16:27:17 PDT"]
[Termination "ShanthamGrarks won on time"]

1. e4 {[%clk 0:04:58.1]} 1... e5 {[%clk 0:04:55.5]} 2. Nf3 {[%clk 0:04:55.4]}
2... d5 {[%clk 0:04:54.4]} 3. Nxe5 {[%clk 0:04:51.3]} 3... Bd6 {[%clk
0:04:50.7]} 4. d4 {[%clk 0:04:27.6]} 4... dxe4 {[%clk 0:04:48.9]} 5. Be2 {[%clk
0:04:08.1]} 5... Nf6 {[%clk 0:04:45.6]} 6. O-O {[%clk 0:04:05.5]} 6... O-O
{[%clk 0:04:42.4]} 7. Bg5 {[%clk 0:04:03.6]} 7... h6 {[%clk 0:04:38]} 8. Bh4
{[%clk 0:04:02.9]} 8... Nbd7 {[%clk 0:04:29.8]} 9. Nc4 {[%clk 0:03:55.2]} 9...
Bf4 {[%clk 0:04:15.8]} 10. Nc3 {[%clk 0:03:43.3]} 10... Qe8 {[%clk 0:03:58]} 11.
Bg3 {[%clk 0:03:20.6]} 11... Bxg3 {[%clk 0:03:55.8]} 12. hxg3 {[%clk 0:03:20.5]}
12... c6 {[%clk 0:03:52.3]} 13. d5 {[%clk 0:03:18.8]} 13... cxd5 {[%clk
0:03:43]} 14. Nxd5 {[%clk 0:03:18.7]} 14... Nxd5 {[%clk 0:03:42]} 15. Qxd5
{[%clk 0:03:17.5]} 15... Nf6 {[%clk 0:03:41.4]} 16. Qe5 {[%clk 0:03:07.5]} 16...
Be6 {[%clk 0:03:36]} 17. Nd6 {[%clk 0:03:03.5]} 17... Qd7 {[%clk 0:03:28.7]} 18.
Nxe4 {[%clk 0:03:01.5]} 18... Nxe4 {[%clk 0:03:23.3]} 19. Qxe4 {[%clk
0:03:01.4]} 19... Rfe8 {[%clk 0:03:21.1]} 20. Bd3 {[%clk 0:02:57.4]} 20... g6
{[%clk 0:03:16.5]} 21. Qf4 {[%clk 0:02:54]} 21... Rad8 {[%clk 0:02:52.5]} 22.
Qxh6 {[%clk 0:02:44.3]} 22... Bf5 {[%clk 0:02:47.3]} 23. Rad1 {[%clk 0:02:36.2]}
23... Bxd3 {[%clk 0:02:44.2]} 24. Rxd3 {[%clk 0:02:34.8]} 24... Qf5 {[%clk
0:02:42.6]} 25. Rfd1 {[%clk 0:01:32.2]} 25... Rxd3 {[%clk 0:02:38.8]} 26. Rxd3
{[%clk 0:01:31.4]} 26... Rc8 {[%clk 0:02:19.5]} 27. Qd2 {[%clk 0:01:25.9]} 27...
Kh7 {[%clk 0:02:10.6]} 28. c3 {[%clk 0:01:22.4]} 28... Re8 {[%clk 0:02:04.5]}
29. Kh2 {[%clk 0:01:06.9]} 29... Qh5+ {[%clk 0:02:00.4]} 30. Kg1 {[%clk
0:01:06.3]} 30... Re2 {[%clk 0:01:51.1]} 31. Qc1 {[%clk 0:00:54.6]} 31... Qe5
{[%clk 0:01:35.8]} 32. Rd1 {[%clk 0:00:50.4]} 32... Qc5 {[%clk 0:01:22]} 33. Rf1
{[%clk 0:00:48.9]} 33... Qb5 {[%clk 0:01:18.5]} 34. Qf4 {[%clk 0:00:40.5]} 34...
Kg8 {[%clk 0:01:03.7]} 35. b4 {[%clk 0:00:35.9]} 35... Rxa2 {[%clk 0:01:01.5]}
36. Qb8+ {[%clk 0:00:30.7]} 36... Kg7 {[%clk 0:00:58.2]} 37. Qc7 {[%clk
0:00:27.4]} 37... Rd2 {[%clk 0:00:49]} 38. g4 {[%clk 0:00:25.6]} 38... Rd7
{[%clk 0:00:47.6]} 39. Qf4 {[%clk 0:00:23.2]} 39... Qd3 {[%clk 0:00:43]} 40. Rc1
{[%clk 0:00:18.2]} 40... Qd2 {[%clk 0:00:40.5]} 41. Qxd2 {[%clk 0:00:16.9]}
41... Rxd2 {[%clk 0:00:40.3]} 42. Kf1 {[%clk 0:00:15.9]} 42... Rb2 {[%clk
0:00:33.2]} 43. Ke1 {[%clk 0:00:14.5]} 43... a6 {[%clk 0:00:32.9]} 44. g3 {[%clk
0:00:13.5]} 44... Kf6 {[%clk 0:00:31.4]} 45. f3 {[%clk 0:00:10.2]} 45... Rg2
{[%clk 0:00:30.2]} 46. c4 {[%clk 0:00:07.2]} 46... Rxg3 {[%clk 0:00:29.3]} 47.
c5 {[%clk 0:00:07.1]} 47... Rg1+ {[%clk 0:00:20.1]} 48. Kd2 {[%clk 0:00:05.9]}
48... Rxc1 {[%clk 0:00:19.7]} 49. Kxc1 {[%clk 0:00:05.8]} 49... Ke5 {[%clk
0:00:18.8]} 50. Kd2 {[%clk 0:00:05.2]} 50... Kd4 {[%clk 0:00:16]} 51. g5 {[%clk
0:00:02.2]} 51... Kc4 {[%clk 0:00:13.9]} 52. f4 {[%clk 0:00:00.6]} 52... Kxb4
{[%clk 0:00:13]} 0-1

[Event "Live Chess"]
[Site "Chess.com"]
[Date "2023.05.21"]
[Round "-"]
[White "grillage"]
[Black "raminguy"]
[Result "0-1"]
[WhiteElo "1842"]
[BlackElo "1965"]
[TimeControl "300"]
[EndTime "16:27:36 PDT"]
[Termination "raminguy won on time"]

1. d4 {[%clk 0:04:58.8]} 1... d5 {[%clk 0:04:59.1]} 2. Nf3 {[%clk 0:04:56.5]}
2... e6 {[%clk 0:04:58.4]} 3. c4 {[%clk 0:04:55]} 3... Nf6 {[%clk 0:04:57.6]} 4.
cxd5 {[%clk 0:04:53.3]} 4... exd5 {[%clk 0:04:56.5]} 5. Nc3 {[%clk 0:04:51.1]}
5... c6 {[%clk 0:04:54.2]} 6. Qc2 {[%clk 0:04:46.7]} 6... Nbd7 {[%clk
0:04:52.9]} 7. Bg5 {[%clk 0:04:45.5]} 7... Be7 {[%clk 0:04:51.5]} 8. e3 {[%clk
0:04:44.1]} 8... O-O {[%clk 0:04:50.4]} 9. Bd3 {[%clk 0:04:42.9]} 9... h6 {[%clk
0:04:49.9]} 10. Bf4 {[%clk 0:04:37.1]} 10... Re8 {[%clk 0:04:48.8]} 11. O-O
{[%clk 0:04:29]} 11... Nf8 {[%clk 0:04:47.4]} 12. h3 {[%clk 0:04:22.2]} 12...
Bd6 {[%clk 0:04:43.4]} 13. Bxd6 {[%clk 0:04:20.9]} 13... Qxd6 {[%clk 0:04:42]}
14. Rab1 {[%clk 0:04:17]} 14... a5 {[%clk 0:04:36.6]} 15. a3 {[%clk 0:04:15.2]}
15... b5 {[%clk 0:03:58.1]} 16. Ne2 {[%clk 0:03:58.1]} 16... Bd7 {[%clk
0:03:53]} 17. Ne5 {[%clk 0:03:55]} 17... Rac8 {[%clk 0:03:47.9]} 18. Rbc1 {[%clk
0:03:34.3]} 18... Ne4 {[%clk 0:02:49.4]} 19. Bxe4 {[%clk 0:03:15.3]} 19... dxe4
{[%clk 0:02:48.1]} 20. Qxe4 {[%clk 0:03:14.2]} 20... f6 {[%clk 0:02:47.1]} 21.
f4 {[%clk 0:03:10.5]} 21... fxe5 {[%clk 0:02:44.3]} 22. fxe5 {[%clk 0:03:09.2]}
22... Qd5 {[%clk 0:02:42.7]} 23. Nc3 {[%clk 0:02:37.5]} 23... Qxe4 {[%clk
0:02:38.2]} 24. Nxe4 {[%clk 0:02:36.7]} 24... Rc7 {[%clk 0:01:59.4]} 25. Rf2
{[%clk 0:02:27.5]} 25... Ne6 {[%clk 0:01:52.9]} 26. Nc5 {[%clk 0:01:52.9]} 26...
Nxc5 {[%clk 0:01:51.1]} 27. Rxc5 {[%clk 0:01:50.9]} 27... Rec8 {[%clk
0:01:43.2]} 28. Rc1 {[%clk 0:01:40.2]} 28... Be6 {[%clk 0:01:42.2]} 29. Rcf1
{[%clk 0:01:38.1]} 29... Rf7 {[%clk 0:01:40.9]} 30. Rc1 {[%clk 0:01:32.9]} 30...
Rxf2 {[%clk 0:01:39.3]} 31. Kxf2 {[%clk 0:01:32.8]} 31... Bd5 {[%clk 0:01:38.3]}
32. g3 {[%clk 0:01:30.8]} 32... Rf8+ {[%clk 0:01:36.5]} 33. Ke2 {[%clk
0:01:30.2]} 33... Rf3 {[%clk 0:01:36.1]} 34. Rg1 {[%clk 0:01:23.5]} 34... Rf7
{[%clk 0:01:25.5]} 35. Kd3 {[%clk 0:01:12.9]} 35... Rf2 {[%clk 0:01:20.7]} 36.
b4 {[%clk 0:00:46.7]} 36... axb4 {[%clk 0:01:13]} 37. axb4 {[%clk 0:00:45.4]}
37... Bc4+ {[%clk 0:01:05.4]} 38. Ke4 {[%clk 0:00:43.5]} 38... Rb2 {[%clk
0:00:56.3]} 39. Ra1 {[%clk 0:00:34.3]} 39... Rxb4 {[%clk 0:00:48.9]} 40. Kf5
{[%clk 0:00:32.6]} 40... Rb3 {[%clk 0:00:38.8]} 41. Re1 {[%clk 0:00:18.2]} 41...
Kf7 {[%clk 0:00:36.6]} 42. e6+ {[%clk 0:00:16.9]} 42... Bxe6+ {[%clk 0:00:35.1]}
43. Ke5 {[%clk 0:00:16.4]} 43... Bxh3 {[%clk 0:00:32.7]} 44. Kd6 {[%clk
0:00:12.1]} 44... Bg2 {[%clk 0:00:29.3]} 45. e4 {[%clk 0:00:09.4]} 45... Rd3
{[%clk 0:00:23.3]} 46. Kc5 {[%clk 0:00:07.2]} 46... h5 {[%clk 0:00:16.2]} 47. e5
{[%clk 0:00:06.3]} 47... Bd5 {[%clk 0:00:13.8]} 48. Kd6 {[%clk 0:00:04.2]} 48...
Rxd4 {[%clk 0:00:11.3]} 49. e6+ {[%clk 0:00:03.5]} 49... Bxe6+ {[%clk
0:00:10.7]} 50. Ke5 {[%clk 0:00:02.1]} 50... Bd5 {[%clk 0:00:09.6]} 0-1